fUSD/lending_fUSD_20250415
["ID","MTS","AMOUNT","RATE_DAILY","PERIOD"]
[358065762,1744683032185,-1057.0,0.000177,2]
[358065763,1744683032194,-2000.0,0.00017731,2]
[358065764,1744683032207,-573.357353,0.00017776,2]
[358065765,1744683032216,-300.0,0.00017791,2]
[358065766,1744683032226,-300.0,0.00017792,2]
[358065767,1744683032235,-401.5171,0.00017792,2]
[358065768,1744683032244,-2903.6154,0.00017793,2]
[358065769,1744683032254,-747.07,0.00017794,2]
[358065770,1744683032263,-438.9457274,0.00017794,2]
[358065771,1744683032274,-438.94572733,0.00017794,2]
[358065772,1744683032284,-438.94572733,0.00017795,2]
[358065773,1744683032293,-438.94572733,0.00017795,2]
[358065774,1744683032303,-438.94572733,0.00017796,2]
[358065775,1744683032312,-394.44625153,0.00017796,2]
[358065776,1744683032481,-44.4994758,0.00017796,2]
[358065777,1744683032491,-438.94572733,0.00017797,2]
[358065778,1744683032501,-438.94572733,0.00017797,2]
[358065779,1744683032511,-438.94572733,0.00017798,2]
[358065780,1744683032520,-157.3835998,0.00017798,2]
[358065781,1744683032530,-150.99,0.00017798,2]
[358065782,1744683032539,-438.94572733,0.00017798,2]
[358065783,1744683032548,-513.2243947,0.000178,2]
[358065866,1744683038643,-486.7756053,0.000178,2]
[358065868,1744683038653,-2000.0,0.00017834,2]
[358065869,1744683038662,-157.38359979,0.00017849,2]
[358065870,1744683038672,-500.0,0.00017873,2]
[358065871,1744683038683,-805.0,0.00017881,2]
[358065872,1744683038693,-545.0,0.00017881,2]
[358065873,1744683038703,-1438.0,0.00017881,2]
[358065874,1744683038713,-908.0,0.00017881,2]
[358065875,1744683038722,-1280.0,0.00017881,2]
[358065876,1744683038733,-4149.0,0.00017881,2]
[358065877,1744683038744,-576.478,0.00017881,2]
[358065878,1744683038757,-790.048,0.00017884,2]
[358065879,1744683038767,-151.820052,0.00017884,2]
[358065880,1744683038776,-1639.8729343,0.00017884,2]
[358065881,1744683038786,-528.2654953,0.00017884,2]
[358065882,1744683038795,-9915.7111505,0.00017884,2]
[358065883,1744683038805,-1930.8889905,0.00017884,2]
[358065884,1744683038814,-681.82,0.00017885,2]
[358065885,1744683038824,-151.820052,0.00017886,2]
[358065886,1744683038833,-151.820052,0.00017886,2]
[358065887,1744683038842,-1565.6452697,0.00017886,2]
[358065888,1744683038851,-1491.4176051,0.00017886,2]
[358065889,1744683038863,-505.4908801,0.00017886,2]
[358065890,1744683038872,-482.7162649,0.00017886,2]
[358065891,1744683038882,-9497.7219669,0.00017886,2]
[358065892,1744683038891,-9079.7327834,0.00017886,2]
[358065893,1744683038902,-1851.3532689,0.00017886,2]
[358065894,1744683038911,-1771.8175473,0.00017886,2]
[358065895,1744683038921,-3965.0,0.00017887,2]
[358065896,1744683038930,-266.384,0.00017887,2]
[358065897,1744683038941,-865.0,0.00017887,2]
[358065898,1744683038952,-162.380719,0.00017887,2]
[358065899,1744683038962,-500.0,0.0001789,2]
[358065900,1744683038971,-500.0,0.00017891,2]
[358065901,1744683038981,-199.70112856,0.00017891,2]
[358065902,1744683038990,-150.0,0.00017891,2]
[358065903,1744683039000,-150.0,0.00017891,2]
[358065904,1744683039010,-500.0,0.00017891,2]
[358065905,1744683039020,-4670.34,0.00017891,2]
[358065906,1744683039030,-500.0,0.00017891,2]
[358065907,1744683039040,-500.0,0.00017891,2]
[358065908,1744683039051,-500.0,0.00017891,2]
[358065909,1744683039061,-500.0,0.00017891,2]
[358065910,1744683039071,-500.0,0.00017891,2]
[358065911,1744683039081,-500.0,0.00017891,2]
[358065912,1744683039092,-543.21077969,0.00017891,2]
[358065913,1744683039102,-392.5413115,0.00017891,2]
[358065914,1744683039116,-500.0,0.00017891,2]
[358065915,1744683039125,-500.0,0.00017891,2]
[358065916,1744683039135,-2506.0,0.00017891,2]
[358065917,1744683039144,-500.0,0.00017891,2]
[358065918,1744683039154,-522.0,0.00017891,2]
[358065919,1744683039163,-150.0,0.00017891,2]
[358065920,1744683039172,-500.0,0.00017891,2]
[358065921,1744683039181,-150.0,0.00017891,2]
[358065922,1744683039190,-150.0,0.00017891,2]
[358065923,1744683039199,-500.0,0.00017891,2]
[358065924,1744683039209,-500.0,0.00017891,2]
[358065925,1744683039218,-500.0,0.00017891,2]
[358065926,1744683039227,-500.0,0.00017891,2]
[358065927,1744683039237,-196.63524899,0.00017891,2]
[358065928,1744683039247,-517.98823168,0.00017892,2]
[358065929,1744683039258,-2013.524255,0.00017892,2]
[358065930,1744683039267,-500.0,0.00017892,2]
[358065931,1744683039276,-513.08037922,0.00017892,2]
[358065932,1744683039285,-527.89071305,0.00017892,2]
[358065933,1744683039293,-521.22418692,0.00017892,2]
[358065934,1744683039301,-500.0,0.00017892,2]
[358065935,1744683039309,-500.0,0.00017892,2]
[358065936,1744683039317,-500.0,0.00017892,2]
[358065937,1744683039326,-313.18775528,0.00017892,2]
[358065938,1744683039335,-398.11181292,0.00017892,2]
[358065939,1744683039343,-500.0,0.00017892,2]
[358065940,1744683039352,-500.0,0.00017892,2]
[358065941,1744683039361,-500.0,0.00017892,2]
[358065942,1744683039371,-532.41582482,0.00017892,2]
[358065943,1744683039380,-510.6578047,0.00017892,2]
[358065944,1744683039389,-520.54218236,0.00017892,2]
[358065945,1744683039399,-529.47543429,0.00017892,2]
[358065946,1744683039408,-514.27054692,0.00017892,2]
[358065947,1744683039417,-521.90790143,0.00017892,2]
[358065948,1744683039427,-503.87099721,0.00017892,2]
[358065949,1744683039436,-515.81426715,0.00017892,2]
[358065950,1744683039445,-526.50173563,0.00017892,2]
[358065951,1744683039454,-504.34636269,0.00017892,2]
[358065952,1744683039464,-513.07947964,0.00017892,2]
[358065953,1744683039474,-510.33818762,0.00017892,2]
[358065954,1744683039484,-516.5324223,0.00017892,2]
[358065955,1744683039494,-532.14775796,0.00017892,2]
[358065956,1744683039503,-500.0,0.00017893,2]
[358065957,1744683039513,-4670.34,0.00017893,2]
[358065958,1744683039522,-500.0,0.00017893,2]
[358065959,1744683039532,-500.0,0.00017893,2]
[358065960,1744683039542,-500.0,0.00017893,2]
[358065961,1744683039552,-1303.873133,0.00017894,2]
[358065962,1744683039562,-1303.873133,0.00017894,2]
[358065963,1744683039572,-519.84512954,0.00017894,2]
[358065964,1744683039581,-525.07254769,0.00017894,2]
[358065965,1744683039590,-521.11,0.00017894,2]
[358065966,1744683039599,-593.96000638,0.00017894,2]
[358065967,1744683039608,-500.0,0.00017894,2]
[358065968,1744683039617,-500.0,0.00017894,2]
[358065969,1744683039627,-525.98462211,0.00017894,2]
[358065970,1744683039637,-531.29162945,0.00017894,2]
[358065971,1744683039646,-500.0,0.00017894,2]
[358065972,1744683039656,-506.49131522,0.00017894,2]
[358065973,1744683039667,-514.48838992,0.00017894,2]
[358065974,1744683039677,-161.10869,0.00017894,2]
[358065975,1744683039687,-161.10869,0.00017894,2]
[358065976,1744683039696,-502.29622703,0.00017894,2]
[358065977,1744683039706,-500.0,0.00017894,2]
[358065978,1744683039716,-510.1015538,0.00017894,2]
[358065979,1744683039726,-500.0,0.00017894,2]
[358065980,1744683039735,-533.49730467,0.00017894,2]
[358065981,1744683039744,-522.60325126,0.00017894,2]
[358065982,1744683039754,-503.27154328,0.00017894,2]
[358065983,1744683039763,-500.0,0.00017894,2]
[358065984,1744683039773,-521.95411516,0.00017894,2]
[358065985,1744683039783,-500.0,0.00017894,2]
[358065986,1744683039793,-500.0,0.00017894,2]
[358065987,1744683039803,-500.0,0.00017894,2]
[358065988,1744683039812,-500.0,0.00017894,2]
[358065989,1744683039822,-500.0,0.00017894,2]
[358065990,1744683039832,-500.0,0.00017894,2]
[358065991,1744683039842,-500.0,0.00017894,2]
[358065992,1744683039853,-509.53163894,0.00017894,2]
[358065993,1744683039867,-500.0,0.00017894,2]
[358065994,1744683039877,-500.0,0.00017894,2]
[358065995,1744683039887,-500.0,0.00017894,2]
[358065996,1744683039896,-500.0,0.00017894,2]
[358065997,1744683039907,-500.0,0.00017894,2]
[358065998,1744683039917,-594.17581326,0.00017894,2]
[358065999,1744683039927,-500.0,0.00017894,2]
[358066000,1744683039936,-500.0,0.00017894,2]
[358066001,1744683039946,-519.50842793,0.00017894,2]
[358066002,1744683039955,-500.0,0.00017894,2]
[358066003,1744683039965,-500.0,0.00017894,2]
[358066004,1744683039975,-513.94851645,0.00017894,2]
[358066005,1744683039984,-500.0,0.00017894,2]
[358066007,1744683039994,-500.0,0.00017894,2]
[358066009,1744683040003,-500.0,0.00017894,2]
[358066010,1744683040012,-576.70744391,0.00017894,2]
[358066011,1744683040021,-500.0,0.00017894,2]
[358066012,1744683040031,-500.0,0.00017894,2]
[358066013,1744683040041,-12587.24,0.00017894,2]
[358066014,1744683040052,-500.0,0.00017894,2]
[358066015,1744683040061,-500.0,0.00017894,2]
[358066016,1744683040073,-500.0,0.00017894,2]
[358066017,1744683040083,-500.0,0.00017894,2]
[358066018,1744683040093,-500.0,0.00017894,2]
[358066019,1744683040103,-517.02337532,0.00017894,2]
[358066020,1744683040112,-500.0,0.00017894,2]
[358066021,1744683040121,-500.0,0.00017894,2]
[358066022,1744683040131,-531.46926732,0.00017894,2]
[358066023,1744683040140,-538.30765339,0.00017894,2]
[358066024,1744683040150,-500.0,0.00017894,2]
[358066025,1744683040159,-500.0,0.00017894,2]
[358066026,1744683040169,-500.0,0.00017894,2]
[358066027,1744683040178,-591.29481649,0.00017894,2]
[358066028,1744683040188,-500.0,0.00017894,2]
[358066029,1744683040199,-500.0,0.00017894,2]
[358066030,1744683040209,-500.0,0.00017894,2]
[358066031,1744683040219,-500.0,0.00017894,2]
[358066032,1744683040228,-500.0,0.00017894,2]
[358066033,1744683040238,-500.0,0.00017894,2]
[358066034,1744683040247,-513.76684156,0.00017894,2]
[358066035,1744683040256,-500.0,0.00017894,2]
[358066036,1744683040266,-578.19612628,0.00017894,2]
[358066037,1744683040276,-500.0,0.00017894,2]
[358066038,1744683040286,-500.0,0.00017894,2]
[358066039,1744683040296,-500.0,0.00017894,2]
[358066040,1744683040306,-500.0,0.00017894,2]
[358066041,1744683040315,-500.0,0.00017894,2]
[358066042,1744683040325,-500.0,0.00017894,2]
[358066043,1744683040335,-500.0,0.00017894,2]
[358066044,1744683040345,-500.0,0.00017894,2]
[358066045,1744683040355,-500.0,0.00017894,2]
[358066046,1744683040364,-500.0,0.00017894,2]
[358066047,1744683040374,-500.0,0.00017894,2]
[358066048,1744683040383,-500.0,0.00017894,2]
[358066049,1744683040393,-500.0,0.00017894,2]
[358066050,1744683040402,-500.0,0.00017894,2]
[358066051,1744683040413,-500.0,0.00017894,2]
[358066052,1744683040424,-500.0,0.00017894,2]
[358066053,1744683040433,-493.44780323,0.00017894,2]
[358066054,1744683040443,-500.0,0.00017894,2]
[358066055,1744683040453,-500.0,0.00017894,2]
[358066056,1744683040462,-500.0,0.00017894,2]
[358066057,1744683040472,-500.0,0.00017894,2]
[358066058,1744683040490,-500.0,0.00017894,2]
[358066059,1744683040502,-500.0,0.00017894,2]
[358066060,1744683040512,-471.80297065,0.00017894,2]
[358066061,1744683040531,-500.0,0.00017894,2]
[358066062,1744683040550,-607.71,0.00017894,2]
[358066063,1744683040563,-500.0,0.00017894,2]
[358066064,1744683040574,-1075.6242176,0.00017894,2]
[358066065,1744683040584,-216.24881757,0.00017894,2]
[358066066,1744683040596,-513.16022116,0.00017894,2]
[358066067,1744683040606,-1003.36,0.00017894,2]
[358066068,1744683040616,-500.0,0.00017894,2]
[358066069,1744683040626,-500.0,0.00017894,2]
[358066070,1744683040636,-500.0,0.00017894,2]
[358066071,1744683040646,-500.0,0.00017894,2]
[358066072,1744683040656,-500.0,0.00017894,2]
[358066073,1744683040666,-500.0,0.00017894,2]
[358066074,1744683040676,-500.0,0.00017894,2]
[358066075,1744683040685,-626.35218113,0.00017894,2]
[358066076,1744683040695,-500.0,0.00017894,2]
[358066077,1744683040704,-503.23018259,0.00017894,2]
[358066078,1744683040714,-500.0,0.00017894,2]
[358066079,1744683040724,-504.84125127,0.00017894,2]
[358066080,1744683040734,-501.79323593,0.00017894,2]
[358066081,1744683040744,-500.0,0.00017894,2]
[358066082,1744683040754,-500.0,0.00017895,2]
[358066083,1744683040763,-4670.34,0.00017895,2]
[358066084,1744683040772,-4670.34,0.00017895,2]
[358066085,1744683040782,-4670.34,0.00017895,2]
[358066086,1744683040792,-500.0,0.00017895,2]
[358066087,1744683040802,-500.0,0.00017895,2]
[358066088,1744683040811,-500.0,0.00017895,2]
[358066089,1744683040821,-500.0,0.00017895,2]
[358066090,1744683040831,-500.0,0.00017895,2]
[358066091,1744683040841,-500.0,0.00017895,2]
[358066092,1744683040851,-500.0,0.00017895,2]
[358066093,1744683040864,-500.0,0.00017895,2]
[358066094,1744683040872,-500.0,0.00017895,2]
[358066095,1744683040881,-500.0,0.00017895,2]
[358066096,1744683040890,-532.24508298,0.00017895,2]
[358066097,1744683040899,-505.18085673,0.00017895,2]
[358066098,1744683040909,-518.89573202,0.00017895,2]
[358066099,1744683040918,-500.0,0.00017895,2]
[358066100,1744683040927,-500.0,0.00017895,2]
[358066101,1744683040937,-501.39636854,0.00017895,2]
[358066102,1744683040948,-508.24306074,0.00017895,2]
[358066103,1744683040957,-500.0,0.00017895,2]
[358066104,1744683040967,-558.58984472,0.00017895,2]
[358066105,1744683040976,-514.82146612,0.00017895,2]
[358066106,1744683040986,-500.0,0.00017895,2]
[358066107,1744683040995,-500.0,0.00017895,2]
[358066108,1744683041005,-500.0,0.00017895,2]
[358066109,1744683041015,-500.0,0.00017895,2]
[358066110,1744683041025,-500.0,0.00017895,2]
[358066111,1744683041035,-500.0,0.00017895,2]
[358066112,1744683041045,-500.0,0.00017895,2]
[358066113,1744683041055,-500.0,0.00017895,2]
[358066114,1744683041065,-500.0,0.00017895,2]
[358066115,1744683041075,-500.0,0.00017895,2]
[358066116,1744683041085,-508.48208423,0.00017895,2]
[358066117,1744683041095,-500.0,0.00017895,2]
[358066118,1744683041106,-352.46367318,0.00017895,2]
[358066119,1744683041115,-561.67699844,0.00017895,2]
[358066120,1744683041126,-500.0,0.00017895,2]
[358066121,1744683041136,-500.0,0.00017895,2]
[358066122,1744683041146,-531.21188002,0.00017895,2]
[358066123,1744683041156,-562.60186341,0.00017895,2]
[358066124,1744683041165,-500.0,0.00017895,2]
[358066125,1744683041175,-500.0,0.00017895,2]
[358066126,1744683041185,-500.0,0.00017895,2]
[358066127,1744683041194,-513.34215765,0.00017895,2]
[358066128,1744683041203,-500.0,0.00017895,2]
[358066129,1744683041213,-199.03463151,0.00017895,2]
[358066130,1744683041222,-530.87691403,0.00017895,2]
[358066131,1744683041231,-500.0,0.00017895,2]
[358066132,1744683041241,-500.0,0.00017895,2]
[358066133,1744683041250,-500.0,0.00017895,2]
[358066134,1744683041260,-500.0,0.00017895,2]
[358066135,1744683041270,-532.71085692,0.00017895,2]
[358066136,1744683041279,-518.10124322,0.00017895,2]
[358066137,1744683041289,-473.04626976,0.00017895,2]
[358066138,1744683041299,-532.57070623,0.00017895,2]
[358066139,1744683041309,-532.93678263,0.00017895,2]
[358066140,1744683041318,-500.0,0.00017895,2]
[358066141,1744683041329,-500.0,0.00017895,2]
[358066142,1744683041339,-533.7752712,0.00017895,2]
[358066143,1744683041349,-500.0,0.00017895,2]
[358066144,1744683041359,-500.0,0.00017895,2]
[358066145,1744683041369,-500.0,0.00017895,2]
[358066146,1744683041378,-500.0,0.00017895,2]
[358066147,1744683041388,-509.33067526,0.00017895,2]
[358066148,1744683041398,-500.0,0.00017895,2]
[358066149,1744683041409,-538.9557673,0.00017895,2]
[358066150,1744683041418,-500.0,0.00017895,2]
[358066151,1744683041429,-500.0,0.00017895,2]
[358066152,1744683041438,-500.0,0.00017895,2]
[358066153,1744683041448,-500.0,0.00017895,2]
[358066154,1744683041458,-513.95410312,0.00017895,2]
[358066155,1744683041468,-500.0,0.00017895,2]
[358066156,1744683041478,-356.59261109,0.00017895,2]
[358066157,1744683041488,-500.0,0.00017895,2]
[358066158,1744683041498,-500.0,0.00017895,2]
[358066159,1744683041508,-501.63412183,0.00017895,2]
[358066160,1744683041518,-500.0,0.00017895,2]
[358066161,1744683041528,-509.18499359,0.00017895,2]
[358066162,1744683041538,-500.0,0.00017895,2]
[358066163,1744683041548,-500.0,0.00017895,2]
[358066164,1744683041558,-530.35753949,0.00017895,2]
[358066165,1744683041568,-500.0,0.00017895,2]
[358066166,1744683041578,-519.33257138,0.00017895,2]
[358066167,1744683041588,-517.72798226,0.00017895,2]
[358066168,1744683041598,-500.0,0.00017895,2]
[358066169,1744683041608,-500.0,0.00017895,2]
[358066170,1744683041618,-506.28597584,0.00017895,2]
[358066171,1744683041627,-500.0,0.00017895,2]
[358066172,1744683041637,-514.53041419,0.00017895,2]
[358066173,1744683041647,-521.20556383,0.00017895,2]
[358066174,1744683041656,-500.0,0.00017895,2]
[358066175,1744683041665,-506.07910658,0.00017895,2]
[358066176,1744683041675,-500.0,0.00017895,2]
[358066177,1744683041684,-1015.17615723,0.00017895,2]
[358066178,1744683041694,-500.0,0.00017895,2]
[358066179,1744683041705,-550.92811403,0.00017895,2]
[358066180,1744683041715,-500.0,0.00017895,2]
[358066181,1744683041725,-523.04605322,0.00017895,2]
[358066182,1744683041734,-524.37671067,0.00017895,2]
[358066183,1744683041744,-500.0,0.00017895,2]
[358066184,1744683041753,-500.0,0.00017895,2]
[358066185,1744683041763,-500.0,0.00017895,2]
[358066186,1744683041773,-500.40851917,0.00017895,2]
[358066187,1744683041783,-500.0,0.00017895,2]
[358066188,1744683041793,-500.0,0.00017895,2]
[358066189,1744683041802,-624.7471797,0.00017895,2]
[358066190,1744683041812,-508.84279318,0.00017895,2]
[358066191,1744683041821,-500.0,0.00017895,2]
[358066192,1744683041831,-505.41864696,0.00017895,2]
[358066193,1744683041841,-470.0,0.00017895,2]
[358066194,1744683041851,-500.0,0.00017895,2]
[358066195,1744683041865,-503.21817737,0.00017895,2]
[358066196,1744683041874,-514.77124932,0.00017895,2]
[358066197,1744683041884,-500.0,0.00017895,2]
[358066198,1744683041894,-530.41813723,0.00017895,2]
[358066199,1744683041906,-500.0,0.00017895,2]
[358066200,1744683041915,-533.39901041,0.00017895,2]
[358066201,1744683041925,-500.0,0.00017895,2]
[358066202,1744683041936,-516.82484121,0.00017895,2]
[358066203,1744683042179,-544.28110448,0.00017895,2]
[358066204,1744683042189,-472.40809009,0.00017895,2]
[358066205,1744683042199,-518.52990794,0.00017895,2]
[358066206,1744683042208,-500.0,0.00017895,2]
[358066207,1744683042216,-533.40542033,0.00017895,2]
[358066208,1744683042225,-531.29549369,0.00017895,2]
[358066209,1744683042234,-500.0,0.00017895,2]
[358066210,1744683042243,-500.0,0.00017895,2]
[358066211,1744683042252,-535.05182201,0.00017895,2]
[358066212,1744683042261,-519.51508335,0.00017895,2]
[358066213,1744683042271,-500.0,0.00017895,2]
[358066214,1744683042280,-500.0,0.00017895,2]
[358066215,1744683042290,-500.0,0.00017895,2]
[358066216,1744683042299,-500.0,0.00017895,2]
[358066217,1744683042308,-500.0,0.00017895,2]
[358066218,1744683042317,-500.0,0.00017895,2]
[358066219,1744683042326,-500.0,0.00017895,2]
[358066220,1744683042336,-500.0,0.00017895,2]
[358066221,1744683042347,-535.81043855,0.00017895,2]
[358066222,1744683042356,-500.0,0.00017895,2]
[358066223,1744683042366,-500.0,0.00017895,2]
[358066224,1744683042375,-508.8836849,0.00017895,2]
[358066225,1744683042385,-500.0,0.00017895,2]
[358066226,1744683042395,-500.0,0.00017895,2]
[358066227,1744683042404,-500.0,0.00017895,2]
[358066228,1744683042413,-500.0,0.00017895,2]
[358066229,1744683042423,-506.0250882,0.00017895,2]
[358066230,1744683042432,-524.32477613,0.00017895,2]
[358066231,1744683042441,-545.07701756,0.00017895,2]
[358066232,1744683042451,-500.0,0.00017895,2]
[358066233,1744683042460,-504.47976704,0.00017895,2]
[358066234,1744683042469,-516.8223839,0.00017895,2]
[358066235,1744683042478,-500.0,0.00017895,2]
[358066236,1744683042488,-500.0,0.00017895,2]
[358066237,1744683042498,-517.58174606,0.00017895,2]
[358066238,1744683042507,-511.51833475,0.00017895,2]
[358066239,1744683042516,-502.67865612,0.00017895,2]
[358066240,1744683042525,-500.0,0.00017895,2]
[358066241,1744683042535,-513.79489795,0.00017895,2]
[358066242,1744683042544,-626.45376071,0.00017895,2]
[358066243,1744683042553,-514.52858192,0.00017895,2]
[358066244,1744683042562,-545.56204828,0.00017895,2]
[358066245,1744683042571,-505.44307552,0.00017895,2]
[358066246,1744683042581,-511.1783956,0.00017895,2]
[358066247,1744683042590,-500.0,0.00017895,2]
[358066248,1744683042600,-512.49437917,0.00017895,2]
[358066249,1744683042609,-549.81,0.00017895,2]
[358066250,1744683042619,-529.91028517,0.00017895,2]
[358066251,1744683042627,-510.26357182,0.00017895,2]
[358066252,1744683042637,-500.0,0.00017895,2]
[358066253,1744683042646,-502.00713616,0.00017895,2]
[358066254,1744683042655,-500.0,0.00017895,2]
[358066255,1744683042664,-2021.8184261,0.00017895,2]
[358066256,1744683042673,-519.8771392,0.00017895,2]
[358066257,1744683042682,-500.0,0.00017895,2]
[358066258,1744683042691,-558.98536469,0.00017895,2]
[358066259,1744683042701,-500.0,0.00017895,2]
[358066260,1744683042710,-513.07378412,0.00017895,2]
[358066261,1744683042719,-500.0,0.00017895,2]
[358066262,1744683042728,-507.52433325,0.00017895,2]
[358066263,1744683042738,-500.0,0.00017895,2]
[358066264,1744683042747,-500.73716374,0.00017895,2]
[358066265,1744683042755,-500.0,0.00017895,2]
[358066266,1744683042764,-500.0,0.00017895,2]
[358066267,1744683042774,-500.0,0.00017895,2]
[358066268,1744683042783,-500.0,0.00017895,2]
[358066269,1744683042792,-500.0,0.00017895,2]
[358066270,1744683042801,-500.0,0.00017895,2]
[358066271,1744683042810,-536.09899326,0.00017895,2]
[358066272,1744683042820,-568.55443127,0.00017895,2]
[358066273,1744683042829,-500.0,0.00017895,2]
[358066274,1744683042839,-500.0,0.00017895,2]
[358066275,1744683042848,-463.34792041,0.00017895,2]
[358066276,1744683042859,-558.1855723,0.00017895,2]
[358066277,1744683042871,-500.0,0.00017895,2]
[358066278,1744683042880,-512.68778651,0.00017895,2]
[358066279,1744683042890,-516.05895361,0.00017895,2]
[358066280,1744683042899,-500.0,0.00017895,2]
[358066281,1744683042910,-500.0,0.00017895,2]
[358066282,1744683042919,-500.0,0.00017895,2]
[358066283,1744683042928,-500.0,0.00017895,2]
[358066284,1744683042939,-508.35585769,0.00017895,2]
[358066285,1744683042949,-586.52,0.00017895,2]
[358066286,1744683042958,-500.0,0.00017895,2]
[358066287,1744683042968,-512.90703074,0.00017895,2]
[358066288,1744683042977,-509.77832867,0.00017895,2]
[358066289,1744683042987,-500.0,0.00017895,2]
[358066290,1744683042996,-511.96145209,0.00017895,2]
[358066291,1744683043006,-500.0,0.00017895,2]
[358066293,1744683043015,-500.0,0.00017895,2]
[358066295,1744683043024,-500.0,0.00017895,2]
[358066296,1744683043034,-518.33279678,0.00017895,2]
[358066297,1744683043043,-500.0,0.00017895,2]
[358066298,1744683043053,-632.94435107,0.00017895,2]
[358066300,1744683043062,-500.0,0.00017895,2]
[358066302,1744683043071,-500.0,0.00017895,2]
[358066303,1744683043081,-500.0,0.00017895,2]
[358066304,1744683043091,-500.0,0.00017895,2]
[358066305,1744683043100,-500.0,0.00017895,2]
[358066306,1744683043110,-503.52149542,0.00017895,2]
[358066307,1744683043119,-500.0,0.00017895,2]
[358066308,1744683043128,-500.0,0.00017895,2]
[358066309,1744683043138,-500.0,0.00017895,2]
[358066310,1744683043147,-500.0,0.00017895,2]
[358066311,1744683043156,-500.0,0.00017895,2]
[358066312,1744683043165,-505.24034728,0.00017895,2]
[358066313,1744683043175,-508.37151413,0.00017895,2]
[358066314,1744683043184,-510.68163171,0.00017895,2]
[358066315,1744683043193,-519.9414459,0.00017895,2]
[358066316,1744683043203,-500.0,0.00017895,2]
[358066317,1744683043212,-518.15072384,0.00017895,2]
[358066318,1744683043221,-566.52834172,0.00017895,2]
[358066319,1744683043230,-500.0,0.00017895,2]
[358066320,1744683043239,-534.11019436,0.00017895,2]
[358066321,1744683043249,-500.0,0.00017895,2]
[358066322,1744683043258,-536.65189069,0.00017895,2]
[358066323,1744683043267,-511.7271763,0.00017895,2]
[358066324,1744683043277,-500.0,0.00017895,2]
[358066325,1744683043286,-516.75454965,0.00017895,2]
[358066326,1744683043295,-500.0,0.00017895,2]
[358066327,1744683043304,-500.0,0.00017895,2]
[358066328,1744683043313,-500.0,0.00017895,2]
[358066329,1744683043323,-500.0,0.00017895,2]
[358066330,1744683043332,-500.0,0.00017895,2]
[358066331,1744683043342,-500.0,0.00017895,2]
[358066332,1744683043351,-526.64837728,0.00017895,2]
[358066333,1744683043360,-503.3975478,0.00017895,2]
[358066334,1744683043370,-500.0,0.00017895,2]
[358066335,1744683043379,-500.0,0.00017895,2]
[358066336,1744683043389,-254.26382086,0.00017895,2]
[358066337,1744683043400,-500.0,0.00017895,2]
[358066338,1744683043409,-547.28369523,0.00017895,2]
[358066339,1744683043419,-500.0,0.00017895,2]
[358066340,1744683043428,-500.0,0.00017895,2]
[358066341,1744683043437,-1167.749324,0.00017896,2]
[358066342,1744683043447,-1167.749324,0.00017896,2]
[358066343,1744683043456,-1167.749324,0.00017896,2]
[358066344,1744683043466,-1167.749324,0.00017896,2]
[358066345,1744683043475,-1167.749324,0.00017896,2]
[358066346,1744683043484,-1167.749324,0.00017896,2]
[358066347,1744683043494,-427.5,0.00017896,2]
[358066348,1744683043503,-427.5,0.00017896,2]
[358066349,1744683043512,-427.5,0.00017896,2]
[358066350,1744683043521,-427.5,0.00017896,2]